{"text_format":"1","workbook":"xlsx","n_sheets":6,"sheets":["Dataset","KB Shortcut","Paste Special","Mouse Drag","Power Query","VBA"],"not_rendered":{"charts":0,"images":0,"macros":1,"external_links":0,"defined_names":1,"comments":0,"pivot_tables":0},"unopened":[],"bounds":{"document_bytes":16777216,"sheet_cells":100000,"rows_first":2000,"rows_last":500,"rows_between":2000,"halvings":0,"cell_chars":16384,"cell_head_chars":4096},"cells_cut":0,"cells_raw":0,"read":"whole","date_system":"1900"}

{"sheet":"Dataset","index":0,"n_rows":10,"n_cols":5,"rows_kept":10,"cut":false,"hidden":false,"merged":[[1,1,1,4]]}
[]
[null,"Converting Formulas to Values in Excel "]
[]
[null,"Item","Unit Price","Quantity","Total"]
[null,"Clipboard",20,2,{"$f":"PRODUCT(C5:D5)","v":40}]
[null,"Diary",10,2,20]
[null,"Pen",2,5,{"$f":"PRODUCT(C7:D7)","v":10}]
[null,"Pencil",1.5,5,{"$f":"PRODUCT(C8:D8)","v":7.5}]
[null,"Stamp",15,4,60]
[null,"Stapler",8,3,24]

{"sheet":"KB Shortcut","index":1,"n_rows":10,"n_cols":10,"rows_kept":10,"cut":false,"hidden":false,"merged":[[1,1,1,4],[1,6,1,9]]}
[]
[null,"Use of Keyboard Shortcut",null,null,null,null,"Practice Here!!!"]
[]
[null,"Item","Unit Price","Quantity","Total",null,"Item","Unit Price","Quantity","Total"]
[null,"Clipboard",20,2,40,null,"Clipboard",20,2,{"$f":"PRODUCT(H5:I5)","v":40}]
[null,"Diary",10,2,20,null,"Diary",10,2,20]
[null,"Pen",2,5,10,null,"Pen",2,5,{"$f":"PRODUCT(H7:I7)","v":10}]
[null,"Pencil",1.5,5,7.5,null,"Pencil",1.5,5,{"$f":"PRODUCT(H8:I8)","v":7.5}]
[null,"Stamp",15,4,60,null,"Stamp",15,4,60]
[null,"Stapler",8,3,24,null,"Stapler",8,3,24]

{"sheet":"Paste Special","index":2,"n_rows":10,"n_cols":10,"rows_kept":10,"cut":false,"hidden":false,"merged":[[1,1,1,4],[1,6,1,9]]}
[]
[null,"Use of Paste Special Feature",null,null,null,null,"Practice Here!!!"]
[]
[null,"Item","Unit Price","Quantity","Total",null,"Item","Unit Price","Quantity","Total"]
[null,"Clipboard",20,2,40,null,"Clipboard",20,2,{"$f":"PRODUCT(H5:I5)","v":40}]
[null,"Diary",10,2,20,null,"Diary",10,2,20]
[null,"Pen",2,5,10,null,"Pen",2,5,{"$f":"PRODUCT(H7:I7)","v":10}]
[null,"Pencil",1.5,5,7.5,null,"Pencil",1.5,5,{"$f":"PRODUCT(H8:I8)","v":7.5}]
[null,"Stamp",15,4,60,null,"Stamp",15,4,60]
[null,"Stapler",8,3,24,null,"Stapler",8,3,24]

{"sheet":"Mouse Drag","index":3,"n_rows":10,"n_cols":10,"rows_kept":10,"cut":false,"hidden":false,"merged":[[1,1,1,4],[1,6,1,9]]}
[]
[null,"Use of Mouse Drag",null,null,null,null,"Practice Here!!!"]
[]
[null,"Item","Unit Price","Quantity","Total",null,"Item","Unit Price","Quantity","Total"]
[null,"Clipboard",20,2,40,null,"Clipboard",20,2,{"$f":"PRODUCT(H5:I5)","v":40}]
[null,"Diary",10,2,20,null,"Diary",10,2,20]
[null,"Pen",2,5,10,null,"Pen",2,5,{"$f":"PRODUCT(H7:I7)","v":10}]
[null,"Pencil",1.5,5,7.5,null,"Pencil",1.5,5,{"$f":"PRODUCT(H8:I8)","v":7.5}]
[null,"Stamp",15,4,60,null,"Stamp",15,4,60]
[null,"Stapler",8,3,24,null,"Stapler",8,3,24]

{"sheet":"Power Query","index":4,"n_rows":10,"n_cols":11,"rows_kept":10,"cut":false,"hidden":false,"merged":[[1,1,1,5],[1,7,1,10]]}
[]
[null,"Use of Power Query",null,null,null,null,null,"Practice Here!!!"]
[]
[null,"Item","Unit Price","Quantity","Total","Total",null,"Item","Unit Price","Quantity","Total"]
[null,"Clipboard",20,2,{"$f":"PRODUCT(C5:D5)","v":40},40,null,"Clipboard",20,2,{"$f":"PRODUCT(I5:J5)","v":40}]
[null,"Diary",10,2,20,20,null,"Diary",10,2,20]
[null,"Pen",2,5,{"$f":"PRODUCT(C7:D7)","v":10},10,null,"Pen",2,5,{"$f":"PRODUCT(I7:J7)","v":10}]
[null,"Pencil",1.5,5,{"$f":"PRODUCT(C8:D8)","v":7.5},7.5,null,"Pencil",1.5,5,{"$f":"PRODUCT(I8:J8)","v":7.5}]
[null,"Stamp",15,4,60,60,null,"Stamp",15,4,60]
[null,"Stapler",8,3,24,24,null,"Stapler",8,3,24]

{"sheet":"VBA","index":5,"n_rows":10,"n_cols":10,"rows_kept":10,"cut":false,"hidden":false,"merged":[[1,1,1,4],[1,6,1,9]]}
[]
[null,"Use of VBA",null,null,null,null,"Practice Here!!!"]
[]
[null,"Item","Unit Price","Quantity","Total",null,"Item","Unit Price","Quantity","Total"]
[null,"Clipboard",20,2,40,null,"Clipboard",20,2,{"$f":"PRODUCT(H5:I5)","v":40}]
[null,"Diary",10,2,20,null,"Diary",10,2,20]
[null,"Pen",2,5,10,null,"Pen",2,5,{"$f":"PRODUCT(H7:I7)","v":10}]
[null,"Pencil",1.5,5,7.5,null,"Pencil",1.5,5,{"$f":"PRODUCT(H8:I8)","v":7.5}]
[null,"Stamp",15,4,60,null,"Stamp",15,4,60]
[null,"Stapler",8,3,24,null,"Stapler",8,3,24]